[Event "40th Cappelle Open 2024"]
[Site "Cappelle-la-Grande"]
[Date "2024.03.04"]
[Round "3.7"]
[White "Barp, Alberto"]
[Black "Lucas, Arthur"]
[Result "1-0"]
[ECO "D25"]
[WhiteElo "2449"]
[BlackElo "2341"]
[Annotator "TA"]
[PlyCount "81"]
[EventDate "2024.03.02"]
[EventType "swiss"]
[EventCountry "FRA"]
[SourceTitle "playchess.com"]
[Source "ChessBase"]
[SourceQuality "1"]
[TimeControl "40/5400+30:1800+30"]

{[%evp 9,81,22,60,53,59,19,27,26,27,8,28,11,10,0,0,0,0,-1,47,45,67,58,49,43,34,68,55,0,0,-46,-50,-68,-68,-54,-52,-88,18,7,0,0,0,10,154,151,172,107,140,143,135,134,162,153,214,219,307,289,677,673,643,629,797,794,737,687,697,676,801,100,29963,1987,12843,11510,5569,5539]} 1. d4 {[%emt 0:00:10]} d5 {[%emt 0:00:11][%cal Bd7d5,Bd5c4][%mdl 32]} 2. c4 {[%emt 0:00:24]} dxc4 {[%emt 0:00:16]} 3. Nf3 {[%emt 0:00:20]} Nf6 {[%emt 0:00:06]} 4. e3 {[%emt 0:00:53]} b5 {[%emt 0:00:29]} 5. a4 {[%emt 0:01:14]} c6 {[%emt 0:00:08][%cal Bc7c6,Bc6c5][%mdl 32]} 6. b3 {[%emt 0:06:45]} e6 {[%emt 1:32:20]} 7. bxc4 {[%emt 0:08:09]} bxc4 {[%emt 0:00:00]} 8. Bxc4 {[%emt 0:00:17] White has an edge.} Bb4+ {[%emt 0:00:00]} 9. Bd2 {[%emt 0:01:41]} c5 {[%emt 0:00:00]} 10. O-O {[%emt 0:16:18]} O-O {[%emt 0:00:00]} 11. Qe2 {[%emt 0:01:15]} Nc6 {[%emt 0:00:00]} 12. Bb5 {[%emt 0:07:28]} Bb7 {[%emt 0:00:00]} 13. Rc1 {[%emt 0:02:36]} Na5 {[%emt 0:00:00]} (13... Qd6 $11) 14. dxc5 $14 {[%emt 0:25:43]} Bxf3 {[%emt 0:00:00]} 15. gxf3 {[%emt 0:00:23]} Nb3 {[%emt 0:00:00]} 16. Bxb4 {[%emt 0:00:17][%cal Ob1d2] Strongly threatening Nd2!} Nxc1 {[%emt 0:00:00]} 17. Qc2 {[%emt 0:00:39][%cal Oc5c6] c6! is the strong threat.} Nd5 $1 {[%emt 0:00:00]} 18. Be1 {[%emt 0:11:52]} (18. Bd2 $14) 18... Qg5+ $11 {[%emt 0:00:00]} 19. Kf1 {[%emt 0:01:20] [#]} (19. Kh1 $11 Qf6 20. Ra3 Qxf3+ 21. Kg1 Qg4+ 22. Kh1) 19... Qxe3 $1 $15 {[%emt 0:00:00]} 20. Ra3 $1 {[%emt 0:00:16]} ({Don't blunder} 20. Nd2 $2 Qh6 21. f4 (21. Qxc1 $2 Nf4 22. Ne4 Qh3+ 23. Kg1 Qg2#) 21... Nxf4 $19) 20... Qh6 {[%emt 0:00:00]} 21. Bd2 $1 {[%emt 0:00:04]} Qxh2 {[%emt 0:00:00][%cal Rh2h1]} ({Not} 21... Qh3+ 22. Kg1 $16) 22. Bxc1 {[%emt 0:05:17] This pair of bishops is nice.} Nb4 {[%emt 0:00:00]} ({Black should try} 22... Rfd8 $1 $17 {White must now prevent ...a6.} 23. Rb3 Rac8) 23. Qc4 {[%emt 0:01:45]} Rfd8 {[%emt 0:03:55]} 24. Bd2 {[%emt 0:00:12]} a5 {[%emt 0:03:09] And now ...Qh1+ would win.} 25. Ke2 {[%emt 0:00:46]} Qe5+ {[%emt 0:00:48]} (25... Qh1 $11 26. Qe4 Rd5) 26. Re3 $16 {[%emt 0:00:26] The board is on fire.} Qb2 {[%emt 0:00:25]} 27. Rb3 {[%emt 0:02:28]} ({Better is} 27. Qb3 $1 $18 {[%cal Rb3b2]} Qd4 28. c6) 27... Qe5+ {[%emt 0:01:39] [#]} 28. Be3 $1 {[%emt 0:00:07]} Rac8 {[%emt 0:00:33]} 29. Nd2 {[%emt 0:01:27]} Nd5 {[%emt 0:00:28] [#]} 30. c6 $1 {[%emt 0:00:04]} Nxe3 {[%emt 0:00:30]} (30... h5 $16 {was worth a try.} 31. Rd3 g5) 31. Rxe3 $18 {[%emt 0:00:06]} Qb2 {[%emt 0:00:30]} (31... Qc7 {might work better.} 32. Qh4 Rd5) 32. Qc3 {[%emt 0:01:04]} Qa2 {[%emt 0:00:31]} (32... Qxc3 33. Rxc3 Rc7) 33. Rd3 {[%emt 0:01:29]} Rxd3 {[%emt 0:01:02]} 34. Qxd3 {[%emt 0:00:11]} Qb2 {[%emt 0:00:00]} 35. Qd6 {[%emt 0:01:11] Repels Qe5+} Qc3 {[%emt 0:00:28]} 36. Nc4 {[%emt 0:01:40]} Qc2+ {[%emt 0:00:20]} 37. Qd2 {[%emt 0:00:30]} Qf5 {[%emt 0:00:39]} 38. c7 $2 $40 {[%emt 0:02:02][%mdl 128] Black is in trouble.} (38. Ba6 $18 {has better winning chances.} Rf8 39. c7 (39. Qxa5 Qc2+ 40. Ke3 Qb3+ 41. Kd2 g6 $18)) 38... Qc5 $2 {[%emt 0:00:07][%mdl 8192]} (38... Qd5 $16) 39. Qd8+ {[%emt 0:00:12]} Qf8 {[%emt 0:00:03]} 40. Qd7 {[%emt 0:00:11][%cal Oc4d6] Threatening mate with Nd6!} g6 {[%emt 0:00:52]} 41. Nd6 {[%emt 0:31:16] Weighted Error Value: White=0.27 (precise) /Black=0.53.  Mistake:       	White=3     	Black=6      Inaccurate:     	White=2     	Black=1      OK:         	White=6     	Black=10     Best:        	White=3     	Black=2      Strong:       	White=4     	Black=1      Brilliant:      	---       	Black=1} 1-0

[Event "40th Cappelle Open 2024"]
[Site "Cappelle-la-Grande"]
[Date "2024.03.04"]
[Round "3.8"]
[White "Nanjo, Ryosuke"]
[Black "Degraeve, Remy"]
[Result "1-0"]
[ECO "C79"]
[WhiteElo "2346"]
[BlackElo "2447"]
[Annotator "TA"]
[PlyCount "47"]
[EventDate "2024.03.02"]
[EventType "swiss"]
[EventCountry "FRA"]
[SourceTitle "playchess.com"]
[Source "ChessBase"]
[SourceQuality "1"]
[TimeControl "40/5400+30:1800+30"]

{[%evp 15,47,35,50,27,32,9,18,7,6,0,0,0,6,0,29,16,40,42,85,33,66,70,78,40,68,50,77,65,64,43,47,44,130,123]} 1. e4 {[%emt 0:00:03]} e5 {[%emt 0:00:07]} 2. Nf3 {[%emt 0:00:10]} Nc6 {[%emt 0:00:08]} 3. Bb5 {[%emt 0:00:06]} a6 {[%emt 0:00:05]} 4. Ba4 {[%emt 0:00:05]} Nf6 {[%emt 0:00:06]} 5. O-O {[%emt 0:00:09]} d6 {[%emt 0:00:04]} 6. Re1 {[%emt 0:00:40]} Bd7 {[%emt 0:00:05]} 7. c3 {[%emt 0:02:48]} g6 {[%emt 0:00:07]} 8. d4 {[%emt 0:02:17]} Bg7 {[%emt 0:00:04]} 9. Nbd2 {[%emt 0:01:32]} O-O {[%emt 0:00:11]} 10. dxe5 {[%emt 0:12:14]} Nxe5 {[%emt 0:01:03]} 11. Nxe5 {[%emt 0:00:37] The position is equal.} dxe5 {[%emt 0:00:44]} 12. Bxd7 {[%emt 0:00:04]} Nxd7 {[%emt 0:04:26]} 13. Nb3 {[%emt 0:04:28]} Qe7 {[%emt 0:03:22]} 14. Be3 {[%emt 0:03:06]} Rad8 {[%emt 0:04:59]} 15. Qe2 {[%emt 0:03:20]} Kh8 {[%emt 0:05:08]} 16. Rad1 {[%emt 0:05:48]} f5 {[%emt 0:03:37]} 17. f3 {[%emt 0:02:02] White has more active pieces.} ({White should play} 17. exf5 $16 gxf5 18. f4) 17... f4 {[%emt 0:04:19]} 18. Bf2 {[%emt 0:00:55]} g5 {[%emt 0:05:01]} 19. Rd3 {[%emt 0:15:50]} Bf6 {[%emt 0:09:10]} 20. Red1 {[%emt 0:01:39] And now Na5 would win.} Qe6 {[%emt 0:03:40]} 21. R1d2 {[%emt 0:07:33] [#] Qd1 is the strong threat.} Nb6 {[%emt 0:08:18]} 22. Bxb6 {[%emt 0:02:43]} Qxb6+ {[%emt 0:02:37]} 23. Qf2 {[%emt 0:00:06] Strongly threatening Qxb6.} Qe6 {[%emt 0:01:02] [#]} (23... Rxd3 $14 24. Qxb6 (24. Rxd3 Rd8 $16) 24... Rxd2 25. Qxc7 (25. Qxb7 Rxb2 26. Qxa6 g4 $15) 25... Rd1+ 26. Kf2 Rb1) 24. Nc5 $1 {[%emt 0:20:51][%csl LRb7,LRe6] Weighted Error Value: White=0.15 (very precise) /Black=0.22 (precise) .  Mistake:       	White=1     	Black=1      Inaccurate:     	White=1     	Black=5      OK:         	White=2     	Black=1      Strong:       	White=1     	---} 1-0

[Event "40th Cappelle Open 2024"]
[Site "Cappelle-la-Grande"]
[Date "2024.03.04"]
[Round "3.9"]
[White "Karthikeyan, P.."]
[Black "Tarhan, Adar"]
[Result "0-1"]
[ECO "A47"]
[WhiteElo "2306"]
[BlackElo "2432"]
[Annotator "TA"]
[PlyCount "51"]
[EventDate "2024.03.02"]
[EventType "swiss"]
[EventCountry "FRA"]
[SourceTitle "playchess.com"]
[Source "ChessBase"]
[SourceQuality "1"]
[TimeControl "40/5400+30:1800+30"]

{[%evp 9,51,7,14,12,21,32,51,9,44,0,54,17,16,0,0,0,0,-5,-25,-17,-1,-7,0,-47,-43,-43,-55,-55,-44,-52,-44,-93,-56,-86,-98,-155,-155,-211,-164,-165,-176,-154,-161,-204]} 1. d4 {[%emt 0:10:20]} Nf6 {[%emt 0:00:04]} 2. Nf3 {[%emt 0:00:11]} e6 {[%emt 0:00:35]} 3. Bf4 {[%emt 0:00:47]} b6 {[%emt 0:03:53]} 4. e3 {[%emt 0:02:19]} Bb7 {[%emt 0:00:12]} 5. Be2 {[%emt 0:00:32]} h6 {[%emt 0:01:13]} 6. h3 {[%emt 0:02:17]} g5 {[%emt 0:02:29]} 7. Bh2 {[%emt 0:01:06]} Rg8 {[%emt 0:03:14]} 8. Qd3 {[%emt 0:03:31] White is slightly better.} Be4 {[%emt 0:06:46]} 9. Qd1 {[%emt 0:08:20]} h5 {[%emt 0:01:53]} (9... Bb7 $11) 10. Nbd2 {[%emt 0:00:36] [#] Strongly threatening Nxe4.} Bb7 {[%emt 0:00:18]} 11. c3 {[%emt 0:16:12]} g4 {[%emt 0:03:18]} 12. hxg4 {[%emt 0:00:30]} hxg4 {[%emt 0:00:06]} 13. Ne5 {[%emt 0:00:46][%cal Re5g4]} Rh8 $1 {[%emt 0:04:53]} (13... Bxg2 14. Rg1 Bb7 15. Nxg4 (15. Bxg4 Nxg4 16. Nxg4 Rg6 $16) 15... Nxg4 16. Bxg4 $14) 14. Kf1 {[%emt 0:12:55][%cal Of1g1] [#]} ({Reject} 14. Bxg4 Bxg2 15. Bf3 Bxh1 16. Bxh1 d5 $17) (14. Nxg4 Nxg4 15. Bxg4 Bxg2 $17) 14... g3 $1 {[%emt 0:05:08]} 15. fxg3 {[%emt 0:00:11]} Nd5 {[%emt 0:01:02]} 16. Kf2 {[%emt 0:01:38]} (16. Nec4 $11) 16... Qg5 $15 {[%emt 0:05:33]} 17. Nf1 {[%emt 0:02:27]} Nc6 {[%emt 0:02:45]} 18. Nxc6 {[%emt 0:03:39]} dxc6 {[%emt 0:00:53]} 19. Bf3 {[%emt 0:05:38]} O-O-O {[%emt 0:00:44][%mdl 1024] Black has compensation.} 20. e4 {[%emt 0:02:09]} (20. g4 $15) 20... Ne7 {[%emt 0:03:47] Black has more active pieces.} 21. g4 {[%emt 0:01:48]} Ng6 {[%emt 0:06:15] Against Bf4} 22. Qd2 {[%emt 0:06:02]} (22. Qa4 $142) 22... Qh4+ $17 {[%emt 0:01:37] Black is clearly better.} 23. g3 {[%emt 0:00:21]} (23. Kg1 $17 {was necessary.}) 23... Qe7 {[%emt 0:01:07] Hoping for ...Ne5.} 24. Bg1 {[%emt 0:00:49]} Rxh1 {[%emt 0:00:25]} 25. Bxh1 {[%emt 0:00:01]} c5 {[%emt 0:00:23] And now ...cxd4 would win.} 26. Ke1 {[%emt 0:01:09] Weighted Error Value: White=0.21 (precise) /Black=0.11 (very precise) .  Mistake:       	White=4     	Black=1      Inaccurate:     	White=4     	Black=2      OK:         	White=3     	Black=6      Best:        	White=1     	Black=4      Strong:       	---       	Black=1      Brilliant:      	---       	Black=1} 0-1

[Event "40th Cappelle Open 2024"]
[Site "Cappelle-la-Grande"]
[Date "2024.03.04"]
[Round "3.10"]
[White "Enchev, Ivajlo"]
[Black "Fedoryshyn, Ievgenii"]
[Result "1/2-1/2"]
[ECO "E01"]
[WhiteElo "2425"]
[BlackElo "2256"]
[Annotator "TA"]
[PlyCount "47"]
[EventDate "2024.03.02"]
[EventType "swiss"]
[EventCountry "FRA"]
[SourceTitle "playchess.com"]
[Source "ChessBase"]
[SourceQuality "1"]
[TimeControl "40/5400+30:1800+30"]

{[%evp 14,47,22,21,55,60,58,54,72,71,68,68,70,77,75,67,118,54,34,43,42,54,64,53,48,53,77,61,104,111,100,88,91,75,77,40]} 1. d4 {[%emt 0:00:08]} d5 {[%emt 0:00:50]} 2. Nf3 {[%emt 0:00:24]} Nf6 {[%emt 0:00:06]} 3. c4 {[%emt 0:00:06]} e6 {[%emt 0:00:20]} 4. Nc3 {[%emt 0:00:09]} c6 {[%emt 0:04:03]} 5. g3 {[%emt 0:00:48]} Nbd7 {[%emt 0:08:43]} 6. Bg2 {[%emt 0:00:44]} Bd6 {[%emt 0:01:45]} 7. O-O {[%emt 0:00:39]} O-O {[%emt 0:00:49]} 8. Nd2 {[%emt 0:03:14]} Qe7 {[%emt 0:21:18]} 9. e4 {[%emt 0:02:40] Threatens to win with e5.} dxe4 {[%emt 0:00:39]} 10. Ndxe4 {[%emt 0:00:08]} Nxe4 {[%emt 0:00:15] White is slightly better.} 11. Nxe4 {[%emt 0:00:08]} Bc7 {[%emt 0:03:32]} 12. Re1 {[%emt 0:06:08]} Rd8 {[%emt 0:01:13]} 13. Bg5 {[%emt 0:04:36]} f6 {[%emt 0:00:25]} 14. Be3 {[%emt 0:00:28]} e5 {[%emt 0:06:41]} ({Better is} 14... Ne5 $14) 15. Qb3 {[%emt 0:04:32] White is more active.} ({White should try} 15. d5 $16 {d6 is the strong threat.} cxd5 16. cxd5 (16. Qxd5+ Kh8 $16)) 15... exd4 $1 $14 {[%emt 0:12:54]} 16. Bxd4 {[%emt 0:00:24][%cal Oe4f6] [#] Strongly threatening Nxf6+!} Ne5 {[%emt 0:00:42]} 17. c5+ {[%emt 0:06:09]} Be6 {[%emt 0:01:26]} 18. Qc3 {[%emt 0:03:06]} (18. Qxb7 $2 {too greedy.} Rab8 19. Qxa7 Rxd4 $19) 18... Qd7 {[%emt 0:16:11]} 19. Rad1 {[%emt 0:03:23] aiming for Bxe5.} Qf7 {[%emt 0:06:56]} 20. f4 {[%emt 0:02:43]} Nd7 {[%emt 0:00:46]} 21. Nd6 {[%emt 0:05:45] White is better.} Bxd6 {[%emt 0:00:14]} 22. cxd6 {[%emt 0:00:02]} Nb6 {[%emt 0:02:44]} 23. Bxb6 {[%emt 0:06:29]} axb6 {[%emt 0:00:02]} 24. Qe3 {[%emt 0:00:32] Weighted Error Value: White=0.06 (flawless) /Black=0.09 (flawless) .  Mistake:       	White=1     	Black=1      Inaccurate:     	White=1     	Black=1      OK:         	White=7     	Black=7      Best:        	---       	Black=1      Strong:       	---       	Black=1} 1/2-1/2

[Event "40th Cappelle Open 2024"]
[Site "Cappelle-la-Grande"]
[Date "2024.03.04"]
[Round "3.11"]
[White "Lesueur, Gabriel"]
[Black "Boyer, Mahel"]
[Result "0-1"]
[ECO "C78"]
[WhiteElo "2207"]
[BlackElo "2415"]
[Annotator "RC"]
[PlyCount "52"]
[EventDate "2024.03.02"]
[EventType "swiss"]
[EventCountry "FRA"]
[SourceTitle "playchess.com"]
[Source "ChessBase"]
[SourceQuality "1"]
[TimeControl "40/5400+30:1800+30"]

1. e4 {[%emt 0:00:04]} Nc6 {[%emt 0:00:33]} 2. Nf3 {[%emt 0:00:19]} e5 {[%emt 0:00:23]} 3. Bb5 {[%emt 0:01:42]} a6 {[%emt 0:00:08]} 4. Ba4 {[%emt 0:00:05]} Nf6 {[%emt 0:00:20]} 5. O-O {[%emt 0:00:07]} b5 {[%emt 0:00:02]} 6. Bb3 {[%emt 0:00:06]} Bb7 {[%emt 0:00:04]} 7. d4 {[%emt 0:05:02]} Nxd4 {[%emt 0:00:12]} 8. Nxd4 {[%emt 0:03:28]} exd4 {[%emt 0:00:05]} 9. e5 {[%emt 0:05:04]} Ne4 {[%emt 0:00:08]} 10. c3 {[%emt 0:05:20]} d3 {[%emt 0:00:05]} 11. Qxd3 {[%emt 0:02:46]} Nc5 {[%emt 0:08:31]} 12. Qg3 {[%emt 0:00:59]} h5 {[%emt 0:27:19]} 13. Rd1 {[%emt 0:20:35]} h4 {[%emt 0:02:07]} 14. Qg4 {[%emt 0:00:04]} Nxb3 {[%emt 0:05:38]} 15. axb3 {[%emt 0:03:25]} Qe7 {[%emt 0:00:19]} 16. Bg5 {[%emt 0:02:50]} Qe6 {[%emt 0:01:52]} 17. Qxe6+ {[%emt 0:00:08]} fxe6 {[%emt 0:06:31]} 18. Nd2 {[%emt 0:12:38]} h3 {[%emt 0:01:00]} 19. g4 {[%emt 0:00:15]} Bc5 {[%emt 0:02:36]} 20. b4 {[%emt 0:04:43]} Bb6 {[%emt 0:00:05]} 21. Re1 {[%emt 0:00:04]} O-O {[%emt 0:05:57]} 22. Be3 {[%emt 0:01:22]} Bxe3 {[%emt 0:01:14]} 23. Rxe3 {[%emt 0:00:04]} Rf4 {[%emt 0:00:03]} 24. Rxh3 {[%emt 0:03:46]} Rxg4+ {[%emt 0:00:08]} 25. Rg3 {[%emt 0:00:03]} Rf4 {[%emt 0:00:52]} 26. f3 {[%emt 0:01:32]} Rf5 {[%emt 0:00:21]} 0-1

[Event "40th Cappelle Open 2024"]
[Site "Cappelle-la-Grande"]
[Date "2024.03.04"]
[Round "3.12"]
[White "Godbole, Atharva"]
[Black "Decuigniere, Tom"]
[Result "0-1"]
[ECO "B80"]
[WhiteElo "2199"]
[BlackElo "2402"]
[Annotator "TA"]
[PlyCount "58"]
[EventDate "2024.03.02"]
[EventType "swiss"]
[EventCountry "FRA"]
[SourceTitle "playchess.com"]
[Source "ChessBase"]
[SourceQuality "1"]
[TimeControl "40/5400+30:1800+30"]

{[%evp 16,58,27,11,17,19,19,0,2,11,29,-22,-29,-20,-25,-40,-40,-36,-46,-37,-27,-27,-29,-68,-47,-135,-121,-164,-158,-170,-175,-169,-157,-165,-175,-275,-266,-312,-316,-425,-418,-458,-464,-395,-383]} 1. e4 {[%emt 0:00:11]} c5 {[%emt 0:00:07]} 2. Nf3 {[%emt 0:01:00]} d6 {[%emt 0:00:08]} 3. d4 {[%emt 0:00:05]} cxd4 {[%emt 0:00:05]} 4. Nxd4 {[%emt 0:00:05]} Nf6 {[%emt 0:00:06]} 5. Nc3 {[%emt 0:00:11]} a6 {[%emt 0:00:06]} 6. f3 {[%emt 0:01:25]} e6 {[%emt 0:00:30]} 7. Be3 {[%emt 0:00:15]} b5 {[%emt 0:00:34]} 8. Qd2 {[%emt 0:00:30]} Nbd7 {[%emt 0:01:10]} 9. g4 {[%emt 0:00:43]} b4 {[%emt 0:00:37]} 10. Na4 {[%emt 0:10:54][%cal Og4g5]} h6 {[%emt 0:00:48]} 11. O-O-O {[%emt 0:04:45]} ({Reject} 11. Qxb4 d5 12. Qd2 dxe4 $15) 11... Ne5 {[%emt 0:01:20] Repels Bc4. The position is equal.} 12. Qxb4 {[%emt 0:11:48]} Bd7 $1 {[%emt 0:01:24]} 13. Nb6 {[%emt 0:16:23]} ({Better is} 13. Bf4) 13... Rb8 $11 {[%emt 0:01:27]} 14. Nb3 $1 {[%emt 0:00:06]} Nc6 {[%emt 0:01:25] Inhibits Qa5.} 15. Qa4 {[%emt 0:02:22] [#] And now Nxd7 would win.} Rxb6 {[%emt 0:00:34]} 16. Bxb6 {[%emt 0:00:06]} Qxb6 {[%emt 0:00:04]} 17. Qxa6 {[%emt 0:00:15]} Qxa6 {[%emt 0:01:41]} 18. Bxa6 {[%emt 0:00:05]} Be7 {[%emt 0:01:31]} 19. Nd4 {[%emt 0:03:51]} O-O {[%emt 0:11:10]} 20. Be2 {[%emt 0:03:43] [#]} (20. Rhe1 $15) 20... d5 $1 $17 {[%emt 0:06:29]} 21. exd5 {[%emt 0:18:34]} Nxd5 {[%emt 0:00:33]} 22. Kb1 {[%emt 0:08:30] White is weak on the dark squares} Nxd4 {[%emt 0:09:14]} 23. Rxd4 {[%emt 0:00:09]} Bf6 {[%emt 0:01:24]} 24. Rd3 {[%emt 0:00:49]} Bb5 {[%emt 0:03:00]} 25. Rxd5 {[%emt 0:00:31]} (25. c4 {was worth a try.} Bxc4 26. Rd2 Bxe2 27. Rxe2) 25... Bxe2 $19 {[%emt 0:00:13] A strong pair of Bishops.} 26. Rd7 {[%emt 0:01:04]} Bxf3 {[%emt 0:00:56]} 27. Rg1 {[%emt 0:00:13]} e5 {[%emt 0:00:51]} 28. c4 {[%emt 0:03:41]} e4 {[%emt 0:01:01]} 29. Kc2 {[%emt 0:01:17]} e3 {[%emt 0:00:57] Weighted Error Value: White=0.32/Black=0.01 (flawless) .  Mistake:       	White=3     	---        Inaccurate:     	White=3     	---        OK:         	White=3     	Black=9      Best:        	White=1     	Black=2      Strong:       	White=1     	Black=2} 0-1

[Event "40th Cappelle Open 2024"]
[Site "Cappelle-la-Grande"]
[Date "2024.03.04"]
[Round "3.13"]
[White "Idani, Pouya"]
[Black "Feryn, Benjamin"]
[Result "1/2-1/2"]
[ECO "C60"]
[WhiteElo "2609"]
[BlackElo "2182"]
[Annotator "TA"]
[PlyCount "50"]
[EventDate "2024.03.02"]
[EventType "swiss"]
[EventCountry "FRA"]
[SourceTitle "playchess.com"]
[Source "ChessBase"]
[SourceQuality "1"]
[TimeControl "40/5400+30:1800+30"]

{[%evp 9,50,34,25,13,10,18,6,0,0,6,27,21,14,27,23,6,7,0,0,3,0,-31,-37,-61,-27,-39,-38,-50,-33,-98,-59,-62,-52,-58,-56,-54,-54,-39,-58,-52,-50,-58,-41]} 1. e4 {[%emt 0:00:01]} e5 {[%emt 0:00:06]} 2. Nf3 {[%emt 0:00:05]} Nc6 {[%emt 0:00:09]} 3. Bb5 {[%emt 0:00:04]} Nge7 {[%emt 0:00:19]} 4. Nc3 {[%emt 0:00:08]} Ng6 {[%emt 0:00:38]} 5. h4 {[%emt 0:00:10][%cal Bh2h4,Bh4h5,Bh5h6][%mdl 32]} Be7 {[%emt 0:01:19]} 6. h5 {[%emt 0:01:09]} Nh4 {[%emt 0:00:43]} 7. Nxh4 {[%emt 0:00:05]} Bxh4 {[%emt 0:00:05] Black is weak on the light squares} 8. Qg4 {[%emt 0:00:05][%csl LRg7,LRh4] The position is equal.} Bf6 {[%emt 0:04:42]} 9. h6 {[%emt 0:00:08]} Rg8 {[%emt 0:07:40]} 10. Nd5 {[%emt 0:00:16]} Nd4 {[%emt 0:00:50][%csl LRb5,LRc2]} 11. Ba4 {[%emt 0:00:05]} b5 {[%emt 0:00:44]} 12. c3 {[%emt 0:01:49][%cal Bc2c3,Bc3d4][%mdl 32]} bxa4 {[%emt 0:00:12]} 13. cxd4 {[%emt 0:00:06]} d6 {[%emt 0:00:43]} 14. Qe2 {[%emt 0:16:45] Threatens to win with Qc4.} c6 {[%emt 0:31:13]} 15. Nxf6+ {[%emt 0:00:36]} gxf6 {[%emt 0:05:09]} 16. f3 {[%emt 0:09:25]} Qb6 {[%emt 0:02:56]} 17. dxe5 {[%emt 0:03:16]} fxe5 {[%emt 0:00:15]} 18. d3 {[%emt 0:01:45]} Rb8 {[%emt 0:01:13]} 19. Rb1 {[%emt 0:15:23]} (19. g4 $15) 19... Ba6 {[%emt 0:06:43]} 20. Be3 {[%emt 0:01:46] Black is slightly better.} Qb5 {[%emt 0:00:48]} 21. O-O {[%emt 0:07:52][%cal Oe2f2]} Qxd3 {[%emt 0:00:23]} 22. Qf2 {[%emt 0:00:06][%cal Of1d1]} Qe2 {[%emt 0:00:26]} 23. Qxe2 {[%emt 0:06:26]} Bxe2 {[%emt 0:01:38]} 24. Rf2 {[%emt 0:00:01]} Bc4 {[%emt 0:02:54]} 25. Rc1 {[%emt 0:00:17]} d5 {[%emt 0:05:09] Weighted Error Value: White=0.10 (very precise) /Black=0.07 (flawless) .  Mistake:       	White=1     	---        Inaccurate:     	White=1     	Black=2      OK:         	White=8     	Black=9      Best:        	White=1     	Black=2} 1/2-1/2

[Event "40th Cappelle Open 2024"]
[Site "Cappelle-la-Grande"]
[Date "2024.03.04"]
[Round "3.14"]
[White "Toure, Vasanth"]
[Black "Gopal G.N."]
[Result "0-1"]
[ECO "B51"]
[WhiteElo "2155"]
[BlackElo "2575"]
[Annotator "TA"]
[PlyCount "37"]
[EventDate "2024.03.02"]
[EventType "swiss"]
[EventCountry "FRA"]
[SourceTitle "playchess.com"]
[Source "ChessBase"]
[SourceQuality "1"]
[TimeControl "40/5400+30:1800+30"]

{[%evp 9,37,14,26,21,11,15,20,10,20,26,34,8,11,5,13,0,0,0,0,0,0,-41,-35,-75,-72,-75,-78,-81,-44,-90]} 1. e4 {[%emt 0:02:44]} c5 {[%emt 0:00:04]} 2. Nf3 {[%emt 0:00:08]} d6 {[%emt 0:00:03]} 3. Bb5+ {[%emt 0:00:51]} Nd7 {[%emt 0:00:16]} 4. O-O {[%emt 0:00:32]} a6 {[%emt 0:02:24]} 5. Bd3 {[%emt 0:00:43]} Ngf6 {[%emt 0:01:32]} 6. c3 {[%emt 0:00:09]} e6 {[%emt 0:01:27]} 7. Bc2 {[%emt 0:02:18]} b5 {[%emt 0:00:22]} 8. d4 {[%emt 0:01:18] The position is equal.} Bb7 {[%emt 0:00:12]} 9. Re1 {[%emt 0:00:48]} Be7 {[%emt 0:03:08]} 10. Nbd2 {[%emt 0:02:44]} Qc7 {[%emt 0:02:35]} 11. h3 {[%emt 0:04:19]} O-O {[%emt 0:05:14]} 12. e5 {[%emt 0:04:29]} Nd5 {[%emt 0:09:05]} 13. Ne4 {[%emt 0:01:09]} dxe5 {[%emt 0:04:56]} 14. dxe5 {[%emt 0:00:59]} Rfd8 {[%emt 0:22:05][%cal Oa8b8]} (14... Nxe5 $2 {loses.} 15. Nxe5 Qxe5 16. Ng5 $18) 15. Bg5 {[%emt 0:27:23]} h6 {[%emt 0:13:09]} ({Reject} 15... Nxe5 $6 16. Nxe5 Qxe5 17. Nf6+ Nxf6 18. Rxe5 $16) 16. Bxe7 {[%emt 0:02:33]} Nxe7 {[%emt 0:00:01]} 17. Qd6 {[%emt 0:16:41]} Qxd6 {[%emt 0:01:47]} 18. exd6 {[%emt 0:00:02]} Nd5 {[%emt 0:06:02]} 19. Ne5 {[%emt 0:01:56] Weighted Error Value: White=0.13 (very precise) /Black=0.06 (flawless) .  Mistake:       	White=1     	---        Inaccurate:     	White=3     	Black=1      OK:         	White=5     	Black=7} 0-1